fUSD/lending_fUSD_20240516
["ID","MTS","AMOUNT","RATE_DAILY","PERIOD"]
[327115837,1715832645957,-310.41156549,0.0001228,2]
[327115838,1715832645969,-38722.4193582,0.0001228,2]
[327115850,1715832972462,170.84563842,5e-05,2]
[327115851,1715833003894,362.03367209,5e-05,2]
[327115852,1715833012686,401.34202197,5e-05,2]
[327115853,1715833017895,362.03367209,5e-05,2]
[327115854,1715833028645,278.02089543,5e-05,2]
[327115855,1715833028672,121.99049195,5e-05,2]
[327115856,1715833033898,362.03367209,5e-05,2]
[327115857,1715833050044,362.03367209,5e-05,2]
[327115858,1715833062842,400.01138738,5e-05,2]
[327115860,1715833069905,362.03367209,5e-05,2]
[327115861,1715833070580,289.12229403,5e-05,2]
[327115862,1715833078647,398.57404526,5e-05,2]
[327115863,1715833087923,362.03367209,5e-05,2]
[327115864,1715833088505,289.12229403,5e-05,2]
[327115865,1715833108499,289.12229403,5e-05,2]
[327115866,1715833111906,362.03367209,5e-05,2]
[327115867,1715833126514,289.12229403,5e-05,2]
[327115868,1715833128599,454.61139111,5e-05,2]
[327115869,1715833144514,289.12229403,5e-05,2]
[327115877,1715833166612,289.12229403,5e-05,2]
[327115878,1715833188525,300.62747172,5e-05,2]
[327115879,1715833203645,150.0,5e-05,2]
[327115880,1715833206307,153.67097977,5e-05,2]
[327115884,1715833419038,-300.0,0.00010655,2]
[327115899,1715833832053,-1380.30322781,0.00010593,2]
[327115900,1715833832063,-1244.75977175,0.00010594,2]
[327115901,1715833832074,-150.0,0.00010594,2]
[327115902,1715833832085,-2686.04732013,0.00010595,2]
[327115903,1715833832098,-1909.146681,0.00010595,2]
[327115904,1715833832108,-155.0,0.00010595,2]
[327115905,1715833832118,-546.67301368,0.00010595,2]
[327115906,1715833832128,-1623.41135056,0.00010596,2]
[327115907,1715833832138,-155.0,0.00010596,2]
[327115908,1715833832148,-170.77,0.00010598,2]
[327115909,1715833832158,-400.0,0.00010598,2]
[327115910,1715833832167,-668.28,0.00010618,2]
[327115911,1715833832176,-9273.37374404,0.00010646,2]
[327115912,1715833832203,-9499.39207902,0.00010646,2]
[327115913,1715833832250,-883.54995,0.00010646,2]
[327115914,1715833832261,-846.47,0.00010646,2]
[327115915,1715833832276,-350.2299999,0.00010646,2]
[327115916,1715833832289,-358.22005688,0.00010646,2]
[327115917,1715833832335,-634.53417016,0.00010646,2]
[327115918,1715833832345,-409.57557879,0.00010655,2]
[327115919,1715833832354,-155.30305813,0.00010655,2]
[327115920,1715833832365,-157.37297207,0.00010658,2]
[327115921,1715833832374,-0.84307618,0.0001071,2]
[327115922,1715833832453,-499.14692382,0.0001071,2]
[327115923,1715833832462,-175.65,0.00010758,2]
[327115924,1715833832472,-250.0,0.00010766,2]
[327115925,1715833832481,-158.58,0.00010778,2]
[327115927,1715833832490,-600.0,0.00010819,2]
[327115929,1715833832500,-158.58,0.00010872,2]
[327115931,1715833832509,-299.99,0.0001095,2]
[327115933,1715833832519,-150.0,0.00010959,2]
[327115935,1715833832529,-158.58,0.00010965,2]
[327115937,1715833832539,-364.49011775,0.0001105,2]
[327115940,1715833832551,-386.41487254,0.0001105,2]
[327115941,1715833832561,-39627.75,0.0001105,2]
[327115944,1715833832570,-999.99,0.0001105,2]
[327115946,1715833832580,-158.58,0.00011059,2]
[327115948,1715833832588,-158.58,0.00011153,2]
[327115950,1715833832597,-150.99,0.00011168,2]
[327115951,1715833832607,-342.04,0.00011168,2]
[327115953,1715833832616,-158.58,0.00011246,2]
[327115955,1715833832626,-158.58,0.0001134,2]
[327115958,1715833832635,-2480.30083138,0.00011657,2]
[327115960,1715833832644,-168.48,0.00011658,2]
[327115961,1715833832654,-328.65616655,0.00011664,2]
[327115963,1715833832663,-457.52911222,0.000118,2]
[327115965,1715833832672,-150.705849,0.00011838,2]
[327115967,1715833832681,-400.0,0.00011922,2]
[327115969,1715833832691,-150.698096,0.00011946,2]
[327115971,1715833832699,-5000.0,0.00012,2]
[327115972,1715833832709,-150.705849,0.00012035,2]
[327115973,1715833832718,-3634.171,0.00012071,2]
[327115974,1715833832726,-24946.2726,0.0001208,2]
[327115975,1715833832736,-687.0861,0.0001208,2]
[327115976,1715833832745,-157.37297207,0.0001208,2]
[327115977,1715833832755,-1000.0,0.0001208,2]
[327115978,1715833832764,-158.17649238,0.0001208,2]
[327115979,1715833832774,-11141.7837,0.0001208,2]
[327115980,1715833832783,-150.698096,0.00012145,2]
[327115981,1715833832792,-163.36,0.0001217,2]
[327115982,1715833832801,-163.36,0.0001217,2]
[327115983,1715833832810,-600.0,0.00012171,2]
[327115984,1715833832820,-539.18880269,0.00012178,2]
[327115985,1715833832829,-1020.63890226,0.00012179,2]
[327115986,1715833832838,-29975.7822,0.0001218,2]
[327115987,1715833832847,-1895.685,0.0001218,2]
[327115988,1715833832856,-500.0,0.0001218,2]
[327115989,1715833832866,-1000.0,0.0001218,2]
[327115990,1715833833000,-31727.42463089,0.0001218,2]
[327115996,1715833837886,-180.0,0.00012175,2]
[327115997,1715833837896,-7400.14096911,0.0001218,2]
[327115998,1715833837905,-213840.9611,0.0001218,2]
[327115999,1715833837915,-100000.0,0.0001218,2]
[327116000,1715833837924,-11489.5589,0.0001218,2]
[327116001,1715833837934,-158.44069888,0.0001218,2]
[327116002,1715833837943,-284.40698226,0.0001218,2]
[327116003,1715833837952,-199.19296421,0.0001218,2]
[327116004,1715833837962,-610.83272231,0.0001218,2]
[327116005,1715833837972,-199.32461269,0.0001218,2]
[327116006,1715833837981,-200.0,0.00012182,2]
[327116007,1715833837990,-1000.0,0.00012182,2]
[327116008,1715833837999,-205.58643,0.00012182,2]
[327116009,1715833838009,-284.40698224,0.00012184,2]
[327116010,1715833838019,-284.40698224,0.00012189,2]
[327116011,1715833838030,-284.40698224,0.00012193,2]
[327116012,1715833838040,-284.40698224,0.00012197,2]
[327116013,1715833838050,-1034.0,0.000122,2]
[327116014,1715833838060,-284.40698224,0.00012202,2]
[327116015,1715833838070,-610.83272229,0.00012204,2]
[327116016,1715833838079,-284.40698224,0.00012206,2]
[327116017,1715833838089,-284.40698224,0.00012211,2]
[327116018,1715833838225,-284.40698224,0.00012215,2]
[327116019,1715833838241,-284.40698224,0.00012219,2]
[327116020,1715833838249,-284.40698224,0.00012224,2]
[327116022,1715833838259,-284.40698224,0.00012228,2]
[327116024,1715833838270,-610.83272229,0.00012228,2]
[327116026,1715833838280,-150.705849,0.00012233,2]
[327116028,1715833838290,-225.37045452,0.00012268,2]
[327116030,1715833838299,-163.36,0.0001227,2]
[327116031,1715833838308,-163.36,0.0001227,2]
[327116032,1715833838317,-151.12,0.0001227,2]
[327116033,1715833838326,-163.36,0.0001227,2]
[327116034,1715833838336,-163.36,0.0001227,2]
[327116035,1715833838345,-163.36,0.0001227,2]
[327116036,1715833838354,-187.000777,0.00012274,2]
[327116037,1715833838364,-1311.276879,0.00012274,2]
[327116038,1715833838373,-2514.7607566,0.00012274,2]
[327116039,1715833838382,-1689.7769206,0.00012274,2]
[327116040,1715833838391,-327.5185306,0.00012274,2]
[327116041,1715833838400,-28393.1419802,0.00012274,2]
[327116042,1715833838410,-942.9451975,0.00012274,2]
[327116043,1715833838419,-167.051613,0.00012277,2]
[327116044,1715833838428,-167.051613,0.00012277,2]
[327116045,1715833838437,-157.051613,0.00012277,2]
[327116046,1715833838447,-157.051613,0.00012277,2]
[327116047,1715833838456,-157.051613,0.00012277,2]
[327116048,1715833838465,-157.051613,0.00012277,2]
[327116049,1715833838474,-157.051613,0.00012277,2]
[327116050,1715833838484,-157.051613,0.00012277,2]
[327116051,1715833838493,-157.051613,0.00012277,2]
[327116052,1715833838503,-155.47497679,0.00012278,2]
[327116053,1715833838512,-208.28641076,0.00012278,2]
[327116054,1715833838522,-155.45868812,0.00012278,2]
[327116055,1715833838531,-189.77242873,0.00012278,2]
[327116056,1715833838541,-167.051613,0.00012278,2]
[327116057,1715833838550,-167.051613,0.00012278,2]
[327116058,1715833838560,-167.051613,0.00012278,2]
[327116059,1715833838570,-167.051613,0.00012278,2]
[327116060,1715833838580,-167.051613,0.00012278,2]
[327116061,1715833838590,-167.051613,0.00012278,2]
[327116062,1715833838599,-167.051613,0.00012278,2]
[327116063,1715833838608,-167.051613,0.00012278,2]
[327116064,1715833838619,-314.81526555,0.00012278,2]
[327116065,1715833838628,-276.95995685,0.00012278,2]
[327116066,1715833838638,-170.02880785,0.00012278,2]
[327116067,1715833838647,-3018.53016703,0.00012278,2]
[327116068,1715833838658,-277.48275435,0.00012278,2]
[327116069,1715833838668,-157.0315687,0.00012278,2]
[327116070,1715833838677,-156.63077785,0.00012278,2]
[327116071,1715833838687,-324.59422712,0.00012278,2]
[327116072,1715833838697,-317.63013013,0.00012278,2]
[327116073,1715833838706,-266.64116534,0.00012278,2]
[327116074,1715833838717,-1940.2757275,0.00012278,2]
[327116075,1715833838726,-4816.9321426,0.00012278,2]
[327116076,1715833838736,-162.60593912,0.00012278,2]
[327116077,1715833838746,-155.88297326,0.00012278,2]
[327116078,1715833838757,-2103.72855566,0.00012278,2]
[327116079,1715833838766,-292.15733624,0.00012278,2]
[327116080,1715833838777,-313.95982499,0.00012278,2]
[327116081,1715833838787,-157.051613,0.00012278,2]
[327116082,1715833838797,-157.051613,0.00012278,2]
[327116083,1715833838807,-157.051613,0.00012278,2]
[327116084,1715833838817,-693.28357357,0.00012279,2]
[327116085,1715833838827,-16590.74561732,0.00012279,2]
[327116086,1715833838836,-219.49709148,0.00012279,2]
[327116087,1715833838846,-695.0,0.00012279,2]
[327116088,1715833838856,-318044.52697902,0.0001228,2]
[327116089,1715833838870,-1800.62340376,0.0001228,2]
[327116090,1715833838885,-405.00005,0.0001228,2]
[327116091,1715833838916,-597.4,0.0001228,2]
[327116093,1715833838981,-21847.25615211,0.0001228,2]
[327116094,1715833839022,-323.28409323,0.0001228,2]
[327116097,1715833841830,-168.70353556,0.0001218,2]
[327116098,1715833841841,-285.17486444,0.0001228,2]
[327116099,1715833841950,-1280.95117358,0.0001228,2]
[327116100,1715833841963,-288.01130055,0.0001228,2]
[327116101,1715833841974,-236447.28720589,0.0001228,2]
[327116102,1715833841985,-4044.77437648,0.0001228,2]
[327116103,1715833842075,-422.70623464,0.0001228,2]
[327116104,1715833842087,-745.0,0.0001228,2]
[327116105,1715833842100,-662.70634916,0.0001228,2]
[327116106,1715833842147,-1201.07604645,0.0001228,2]
[327116107,1715833842171,-71142.21413286,0.0001228,2]
[327116108,1715833842181,-3709.338,0.0001228,2]
[327116109,1715833842198,-122089.94358322,0.0001228,2]
[327116110,1715833842229,-1429.90181486,0.0001228,2]
[327116116,1715833842813,-1201.74145817,0.0001228,2]
[327116117,1715833842856,-36232.45533515,0.0001228,2]
[327116118,1715833842996,-600.64996105,0.0001228,2]
[327116119,1715833843142,-615.28590621,0.0001228,2]
[327116120,1715833845928,-411.08824489,0.00010655,2]
[327116121,1715833845938,-754.0560809,0.00012178,2]
[327116122,1715833845950,-489.67358912,0.00012178,2]
[327116123,1715833845960,-457.52911222,0.00012179,2]
[327116124,1715833845970,-298.90040074,0.00012179,2]
[327116125,1715833845980,-168.70353554,0.00012204,2]
[327116126,1715833845990,-1210.18369145,0.00012279,2]
[327116129,1715833846201,-2308.78523856,0.00012279,2]
[327116130,1715833846213,-1481.03106999,0.00012279,2]
[327116131,1715833846223,-219.49709147,0.00012279,2]
[327116132,1715833846234,-1476.19875181,0.0001228,2]
[327116133,1715833846261,-6888.303369,0.0001228,2]
[327116134,1715833846280,-661.17867138,0.0001228,2]
[327116180,1715835032082,-1935.23226309,0.00010152,2]
[327116181,1715835032112,-493.36047548,0.00010152,2]
[327116182,1715835032325,-301.77695469,0.00010152,2]
[327116183,1715835032337,-1563.99,0.00010152,2]
[327116184,1715835032501,-734.41478757,0.00010152,2]
[327116185,1715835032510,-1205.19634876,0.00010251,2]
[327116186,1715835032520,-345.16221939,0.00010252,2]
[327116190,1715835038009,-201.51079429,0.00010252,2]
[327116191,1715835038018,-161.34,0.00010411,2]
[327116192,1715835038164,-74.85863906,0.00010558,2]
[327116193,1715835038201,-12157.23206094,0.00010558,2]
[327116194,1715835038211,-1625.62011529,0.00010658,2]
[327116195,1715835038220,-326.0,0.00010959,2]
[327116196,1715835038229,-271.67,0.00010959,2]
[327116197,1715835038239,-271.67,0.00010959,2]
[327116198,1715835038249,-181.11,0.00010959,2]
[327116199,1715835038259,-150.93,0.00010959,2]
[327116200,1715835038269,-754.67,0.00010959,2]
[327116201,1715835038278,-250.0,0.00011192,2]
[327116202,1715835038287,-444.84,0.00011223,2]
[327116203,1715835038297,-168.48,0.00011223,2]
[327116204,1715835038307,-1000.0,0.00011224,2]
[327116205,1715835038317,-2461.29111359,0.000118,2]
[327116206,1715835038326,-457.52911222,0.000118,2]
[327116207,1715835038336,-150.99,0.00012,2]
[327116208,1715835038345,-5000.0,0.00012,2]
[327116209,1715835038354,-3640.931,0.00012051,2]
[327116210,1715835038363,-34023.3219,0.0001208,2]
[327116212,1715835038373,-256.7812,0.00012178,2]
[327116214,1715835038382,-210.5281,0.00012178,2]
[327116216,1715835038391,-2651.2496,0.00012178,2]
[327116217,1715835038400,-7152.0751,0.00012178,2]
[327116218,1715835038409,-2500.0,0.0001218,2]
[327116220,1715835038419,-200.0,0.00012182,2]
[327116222,1715835038428,-1000.0,0.00012182,2]
[327116224,1715835038437,-180.0,0.00012197,2]
[327116225,1715835038446,-1000.0,0.000122,2]
[327116226,1715835038455,-1000.0,0.000122,2]
[327116227,1715835038465,-1000.0,0.000122,2]
[327116228,1715835038474,-817.0,0.000122,2]
[327116230,1715835038484,-1000.0,0.000122,2]
[327116231,1715835038493,-1000.0,0.000122,2]
[327116232,1715835038502,-1000.0,0.000122,2]
[327116233,1715835038511,-1000.0,0.000122,2]
[327116234,1715835038521,-1000.0,0.000122,2]
[327116235,1715835038531,-1000.0,0.000122,2]
[327116236,1715835038540,-1000.0,0.000122,2]
[327116237,1715835038550,-1000.0,0.000122,2]
[327116238,1715835038565,-1236.0,0.000122,2]
[327116239,1715835038575,-1000.0,0.000122,2]
[327116240,1715835038586,-1000.0,0.000122,2]
[327116241,1715835038596,-1000.0,0.000122,2]
[327116242,1715835038606,-1000.0,0.000122,2]
[327116243,1715835038616,-1160.0,0.000122,2]
[327116244,1715835038625,-1000.0,0.000122,2]
[327116245,1715835038634,-768.16913012,0.00012278,2]
[327116246,1715835038646,-1080.67189986,0.00012278,2]
[327116247,1715835038656,-3007.03887667,0.00012278,2]
[327116248,1715835038666,-524.06810927,0.00012278,2]
[327116249,1715835038676,-1610.33977782,0.00012278,2]
[327116250,1715835038686,-4326.13714032,0.00012278,2]
[327116251,1715835038696,-1383.95938443,0.00012279,2]
[327116252,1715835038706,-200.8607578,0.00012279,2]
[327116253,1715835038715,-622.0,0.0001228,2]
[327116254,1715835038724,-45732.59317614,0.0001228,2]
[327116255,1715835038739,-442804.01095537,0.0001228,2]
[327116256,1715835038840,-363.07044995,0.0001228,2]
[327116257,1715835040021,-6630.8189271,0.0001228,2]
[327116258,1715835040032,-4997.2564545,0.0001228,2]
[327116259,1715835040057,-9916.49786161,0.0001228,2]
[327116260,1715835040068,-3000.0,0.0001228,2]
[327116261,1715835040080,-1073.42163899,0.0001228,2]
[327116262,1715835040092,-830.64391533,0.0001228,2]
[327116263,1715835040118,-1805.2443034,0.0001228,2]
[327116264,1715835040131,-43453.73582546,0.0001228,2]
[327116265,1715835040141,-3619.015,0.0001228,2]
[327116266,1715835040150,-34351.30152274,0.0001228,2]
[327116267,1715835040253,-356.88671547,0.0001228,2]
[327116268,1715835040516,-492.61339342,0.0001228,2]
[327116269,1715835040528,-1933.63986242,0.0001228,2]
[327116270,1715835040539,-561.21699996,0.0001228,2]
[327116271,1715835040551,-408.23500016,0.0001228,2]
[327116272,1715835040574,-1420.37373685,0.0001228,2]
[327116273,1715835040585,-741.5042882,0.0001228,2]
[327116287,1715835043230,-977.79543901,0.0001228,2]
[327116288,1715835043265,-321245.97815209,0.0001228,2]
[327116289,1715835043277,-550.84265717,0.0001228,2]
[327116290,1715835043342,-1884.50933853,0.0001228,2]
[327116291,1715835043354,-811.45434183,0.0001228,2]
[327116292,1715835043366,-4052.65503142,0.0001228,2]
[327116302,1715835046107,-452.28,0.00011999,2]
[327116303,1715835046120,-5.24911222,0.00011999,2]
[327116304,1715835046129,-488.45688778,0.0001228,2]
[327116305,1715835046230,-48109.85597681,0.0001228,2]
[327116306,1715835046266,-434.17365,0.0001228,2]
[327116307,1715835046427,-4740.3722,0.0001218,2]
[327116308,1715835046437,-167660.9683234,0.0001228,2]
[327116321,1715835764326,-150.0,8.909e-05,2]
[327116340,1715836232645,-624.91528117,8.616e-05,2]
[327116343,1715836232677,-451.92492773,8.616e-05,2]
[327116344,1715836232701,-128.35613986,8.616e-05,2]
[327116345,1715836232709,-546.67301368,8.617e-05,2]
[327116346,1715836232719,-2232.0,8.618e-05,2]
[327116347,1715836232728,-1666.402866,8.62e-05,2]
[327116348,1715836232737,-162.21,8.711e-05,2]
[327116349,1715836232746,-2351.24702909,8.908e-05,2]
[327116350,1715836232755,-560.68534116,8.909e-05,2]
[327116351,1715836232764,-155.0,8.909e-05,2]
[327116352,1715836232774,-155.0,8.909e-05,2]
[327116353,1715836232783,-20743.92143531,8.909e-05,2]
[327116354,1715836232794,-4574.59801111,8.909e-05,2]
[327116356,1715836232805,-24231.73961225,8.909e-05,2]
[327116358,1715836232817,-24941.11329211,8.909e-05,2]
[327116360,1715836232829,-1498.36689116,8.909e-05,2]
[327116364,1715836232897,-938.21279485,8.909e-05,2]
[327116365,1715836232908,-322.91174239,8.909e-05,2]
[327116366,1715836232919,-776.61022031,8.909e-05,2]
[327116367,1715836232961,-7353.0,8.909e-05,2]
[327116377,1715836238187,-2682.41527993,8.909e-05,2]
[327116378,1715836238205,-3677.111732,8.909e-05,2]
[327116379,1715836238221,-3530.64173,8.909e-05,2]
[327116380,1715836238323,-97143.41390057,8.909e-05,2]
[327116381,1715836238340,-7506.31598583,8.909e-05,2]
[327116382,1715836238358,-14679.68147628,8.909e-05,2]
[327116383,1715836238375,-21687.34065095,8.909e-05,2]
[327116384,1715836238393,-24552.60933185,8.909e-05,2]
[327116385,1715836238410,-1051.40066509,8.909e-05,2]
[327116386,1715836238429,-13460.12467435,8.909e-05,2]
[327116387,1715836238446,-3108.79769065,8.909e-05,2]
[327116388,1715836238511,-1235.9041344,8.909e-05,2]
[327116389,1715836238529,-277.08532983,8.909e-05,2]
[327116390,1715836238620,-848.26710872,8.909e-05,2]
[327116391,1715836238641,-385.83443778,8.909e-05,2]
[327116515,1715836240235,-2560.0,8.909e-05,2]
[327116520,1715836240275,-540.39,8.909e-05,2]
[327116535,1715836240409,-798.57291741,8.909e-05,2]
[327116687,1715836243636,-963.42684957,8.909e-05,2]
[327116688,1715836243654,-619.10457442,8.909e-05,2]
[327116692,1715836246274,-2192.36880359,8.909e-05,2]
[327116693,1715836246286,-330.22413,8.909e-05,2]
[327116694,1715836246408,-1221.72,8.909e-05,2]
[327116695,1715836246419,-456.80005735,8.909e-05,2]
[327116696,1715836246430,-63966.02494366,8.909e-05,2]
[327116726,1715836468682,162.21,8.419e-05,2]
[327116727,1715836522796,155.0,8.419e-05,2]
[327116728,1715836525905,560.68534116,8.419e-05,2]
[327116730,1715836542895,155.0,8.419e-05,2]
[327116731,1715836545916,636.71238846,8.419e-05,2]
[327116732,1715836546602,547408.26817916,8.419e-05,2]
[327116733,1715836555114,155.0,8.419e-05,2]
[327116734,1715836559228,366.59577081,8.419e-05,2]
[327116735,1715836563140,249917.23380613,8.419e-05,2]
[327116736,1715836563234,155.0,8.419e-05,2]
[327116737,1715836571132,155.0,8.419e-05,2]
[327116738,1715836573855,366.59577081,8.419e-05,2]
[327116739,1715836580816,155.21245063,8.419e-05,2]
[327116740,1715836587148,265.79331966,8.419e-05,2]
[327116741,1715836589217,366.59577081,8.419e-05,2]
[327116742,1715836613223,366.59577081,8.419e-05,2]
[327116743,1715836631230,366.59577081,8.419e-05,2]
[327116744,1715836655230,366.59577081,8.419e-05,2]
[327116745,1715836669230,368.18696556,8.419e-05,2]
[327116746,1715836692293,948.48866316,8.419e-05,2]
[327116749,1715836952888,-546.67301368,8.898e-05,2]
[327116750,1715836952910,-155.87753212,8.909e-05,2]
[327116751,1715836952933,-2985.49,0.00010211,2]
[327116752,1715836952957,-1378.45,0.00010214,2]
[327116753,1715836952979,-547.6,0.00010218,2]
[327116754,1715836953002,-800.0,0.00010221,2]
[327116755,1715836953025,-162.66,0.00010239,3]
[327116756,1715836953047,-1030.12,0.00010243,2]
[327116757,1715836953071,-162.68,0.00010243,2]
[327116758,1715836953093,-166.57,0.00010245,2]
[327116759,1715836953118,-150.0,0.00010268,2]
[327116760,1715836953144,-150.0,0.00010268,2]
[327116761,1715836953166,-1500.0,0.00010269,2]
[327116762,1715836953187,-626.49,0.00010269,2]
[327116763,1715836953210,-319.59,0.00010269,2]
[327116764,1715836953231,-2057.95,0.00010275,2]
[327116765,1715836953253,-200.0,0.00010275,2]
[327116766,1715836953275,-2423.17,0.00010275,2]
[327116767,1715836953296,-250.0,0.00010288,2]
[327116768,1715836953319,-155.0,0.00010304,2]
[327116769,1715836953340,-250.0,0.00010343,2]
[327116770,1715836953362,-2476.56,0.00010356,2]
[327116771,1715836953383,-6080.21,0.00010356,2]
[327116772,1715836953404,-996.14,0.00010356,2]
[327116773,1715836953425,-4000.0,0.00010359,2]
[327116774,1715836953447,-499.99,0.00010359,2]
[327116775,1715836953468,-1511.52,0.00010359,2]
[327116776,1715836953494,-500.0,0.00010365,2]
[327116777,1715836953516,-200.0,0.00010372,2]
[327116778,1715836953537,-5649.93146461,0.00010416,2]
[327116779,1715836953559,-12189.79,0.00010426,2]
[327116780,1715836953580,-3000.0,0.0001045,2]
[327116781,1715836953601,-23900.0,0.00010568,2]
[327116782,1715836953623,-155.0,0.00010572,2]
[327116783,1715836953645,-162.62,0.00010578,2]
[327116784,1715836953666,-950.09337043,0.00010781,7]
[327116785,1715836953706,-155.0,0.00010841,2]
[327116786,1715836953749,-150.0,0.00010959,2]
[327116787,1715836953792,-157.01,0.00010978,2]
[327116788,1715836953831,-157.01,0.00010984,2]
[327116789,1715836953873,-157.01,0.00010989,2]
[327116790,1715836953907,-157.01,0.00010995,2]
[327116791,1715836953948,-1476.4965646,0.00011,2]
[327116792,1715836954416,162.21,8.304e-05,2]
[327116793,1715836958427,4854.90299715,0.00010781,7]
[327116794,1715836958896,19025.2506102,0.00010781,7]
[327116795,1715836965012,-157.01,0.00011,2]
[327116796,1715836965037,-157.01,0.00011006,2]
[327116797,1715836965060,-157.01,0.00011011,2]
[327116798,1715836965082,-157.01,0.00011017,2]
[327116799,1715836965104,-157.01,0.00011022,2]
[327116800,1715836965130,-157.01,0.00011028,2]
[327116801,1715836965153,-157.01,0.00011033,2]
[327116802,1715836965176,-750.17982827,0.0001105,2]
[327116803,1715836965197,-500.0,0.00011063,2]
[327116804,1715836965221,-523.66,0.00011068,2]
[327116805,1715836965243,-246.78,0.00011068,2]
[327116806,1715836965266,-169.13,0.0001122,2]
[327116807,1715836965287,-150.51,0.00011278,2]
[327116808,1715836965309,-351.39,0.00011278,2]
[327116809,1715836965330,-523.66,0.00011278,2]
[327116810,1715836965352,-800.0,0.00011498,2]
[327116824,1715837432399,-444.06,0.0001041,2]
[327116826,1715837432412,-945.02971513,0.0001041,2]
[327116829,1715837432462,-374.10436896,0.0001041,2]
[327116830,1715837432473,-9456.84451699,0.0001041,2]
[327116831,1715837432483,-243.42,0.00010411,2]
[327116832,1715837432492,-500.0,0.00010506,2]
[327116833,1715837432501,-900.0,0.00010506,2]
[327116834,1715837432511,-700.0,0.00010506,2]
[327116835,1715837432520,-250.0,0.00011096,2]
[327116836,1715837432529,-470.98,0.000111,2]
[327116837,1715837432538,-169.13,0.00011102,2]
[327116838,1715837432547,-16377.2221,0.00011174,2]
[327116839,1715837432557,-2008.11,0.00011256,3]
[327116840,1715837432566,-23900.0,0.00011266,2]
[327116841,1715837432575,-1650.7,0.00011274,2]
[327116842,1715837432585,-250.0,0.00011295,2]
[327116843,1715837432594,-900.0,0.00011328,2]
[327116844,1715837432603,-700.0,0.00011328,2]
[327116845,1715837432612,-414.85,0.000114,2]
[327116846,1715837432622,-200.0,0.00011498,2]
[327116847,1715837432631,-298.78407833,0.00011498,2]
[327116848,1715837432640,-3000.0,0.00011498,2]
[327116849,1715837432649,-200.0,0.00011498,2]
[327116850,1715837432658,-150.0,0.00011507,2]
[327116851,1715837432667,-163.36,0.00011507,2]
[327116852,1715837432678,-150.0,0.00011507,2]
[327116853,1715837432687,-150.0,0.00011507,2]
[327116854,1715837432698,-150.0,0.00011507,2]
[327116855,1715837432707,-150.0,0.00011507,2]
[327116856,1715837432716,-10.41852868,0.00011507,2]
[327116857,1715837432843,-410.06147132,0.00011507,2]
[327116858,1715837432852,-523.71,0.00011507,2]
[327116859,1715837432861,-150.0,0.00011507,2]
[327116860,1715837432871,-351.59,0.00011507,2]
[327116861,1715837432880,-163.36,0.00011507,2]
[327116862,1715837432889,-420.48,0.00011507,2]
[327116863,1715837432899,-523.71,0.00011507,2]
[327116864,1715837432908,-150.0,0.00011507,2]
[327116865,1715837432918,-163.36,0.00011507,2]
[327116866,1715837432928,-351.59,0.00011507,2]
[327116867,1715837432937,-150.0,0.00011507,2]
[327116868,1715837432947,-150.0,0.00011507,2]
[327116869,1715837432956,-328.47149908,0.00011507,2]
[327116870,1715837432976,-195.23850092,0.00011507,2]
[327116871,1715837432985,-420.48,0.00011507,2]
[327116872,1715837432995,-150.0,0.00011507,2]
[327116873,1715837433005,-150.0,0.00011507,2]
[327116874,1715837433014,-163.36,0.00011507,2]
[327116875,1715837433024,-150.0,0.00011507,2]
[327116876,1715837433034,-117.7085989,0.00011507,2]
[327116889,1715837438537,-233.8814011,0.00011507,2]
[327116890,1715837438546,-323.63026749,0.00011507,2]
[327116891,1715837438557,-200.07973251,0.00011507,2]
[327116892,1715837438567,-420.48,0.00011507,2]
[327116893,1715837438576,-150.0,0.00011507,2]
[327116894,1715837438585,-150.0,0.00011507,2]